[Event "December 5 Late 2023"]
[Site "https://www.chess.com"]
[Date "2023.12.05"]
[Round "8"]
[White "Pakleza, Zbigniew"]
[Black "Bardyk, Artem"]
[Result "1/2-1/2"]
[Board "30"]
[TimeControl "180+1"]
[WhiteFideId "1119290"]
[BlackFideId "34349979"]
[WhiteElo "2666"]
[BlackElo "2854"]
[WhiteTeam "POL"]
[BlackTeam "RUS"]
[WhiteClock "0:00:09"]
[BlackClock "0:00:05"]

1. d4 {[%clk 0:03:00]}  d5 {[%clk 0:02:59]} 2. Nf3 {[%clk 0:03:00]}  Nf6 {[%clk 0:02:59]} 3. Bf4 {[%clk 0:03:01]}  Bf5 {[%clk 0:02:58]} 4. e3 {[%clk 0:03:00]}  e6 {[%clk 0:02:57]} 5. Bd3 {[%clk 0:03:01]}  Bxd3 {[%clk 0:02:56]} 6. Qxd3 {[%clk 0:03:01]}  c6 {[%clk 0:02:54]} 7. O-O {[%clk 0:03:01]}  Nbd7 {[%clk 0:02:54]} 8. Nbd2 {[%clk 0:02:59]}  Be7 {[%clk 0:02:54]} 9. e4 {[%clk 0:02:53]}  dxe4 {[%clk 0:02:54]} 10. Nxe4 {[%clk 0:02:54]}  O-O {[%clk 0:02:54]} 11. Rfd1 {[%clk 0:02:50]}  Nxe4 {[%clk 0:02:50]} 12. Qxe4 {[%clk 0:02:51]}  Qa5 {[%clk 0:02:50]} 13. h3 {[%clk 0:02:47]}  Rfd8 {[%clk 0:02:49]} 14. c3 {[%clk 0:02:46]}  Nf6 {[%clk 0:02:48]} 15. Qe2 {[%clk 0:02:46]}  Qf5 {[%clk 0:02:47]} 16. Bh2 {[%clk 0:02:43]}  Bd6 {[%clk 0:02:45]} 17. Be5 {[%clk 0:02:41]}  Bxe5 {[%clk 0:02:42]} 18. Qxe5 {[%clk 0:02:38]}  Qxe5 {[%clk 0:02:40]} 19. Nxe5 {[%clk 0:02:34]}  Rd5 {[%clk 0:02:36]} 20. Kf1 {[%clk 0:02:32]}  Rad8 {[%clk 0:02:36]} 21. Ke2 {[%clk 0:02:33]}  c5 {[%clk 0:02:31]} 22. Nf3 {[%clk 0:02:31]}  Ne4 {[%clk 0:02:25]} 23. c4 {[%clk 0:02:00]}  R5d6 {[%clk 0:02:21]} 24. dxc5 {[%clk 0:02:00]}  Nxc5 {[%clk 0:02:20]} 25. b3 {[%clk 0:01:48]}  Nd3 {[%clk 0:02:13]} 26. g3 {[%clk 0:01:44]}  e5 {[%clk 0:02:09]} 27. Ke3 {[%clk 0:01:24]}  f5 {[%clk 0:02:04]} 28. Ne1 {[%clk 0:01:12]}  Nxe1 {[%clk 0:01:28]} 29. Rxd6 {[%clk 0:01:12]}  Ng2+ {[%clk 0:01:28]} 30. Kf3 {[%clk 0:01:06]}  Nh4+ {[%clk 0:01:20]} 31. gxh4 {[%clk 0:01:07]}  Rxd6 {[%clk 0:01:20]} 32. Re1 {[%clk 0:01:05]}  e4+ {[%clk 0:01:16]} 33. Kf4 {[%clk 0:01:05]}  g6 {[%clk 0:01:15]} 34. h5 {[%clk 0:00:56]}  Kf7 {[%clk 0:01:12]} 35. hxg6+ {[%clk 0:00:55]}  hxg6 {[%clk 0:01:12]} 36. f3 {[%clk 0:00:50]}  exf3 {[%clk 0:01:10]} 37. Kxf3 {[%clk 0:00:51]}  Rd3+ {[%clk 0:01:10]} 38. Kg2 {[%clk 0:00:22]}  Rd2+ {[%clk 0:01:09]} 39. Kg3 {[%clk 0:00:23]}  Rxa2 {[%clk 0:01:09]} 40. Rd1 {[%clk 0:00:21]}  Ke6 {[%clk 0:01:06]} 41. Re1+ {[%clk 0:00:22]}  Kf6 {[%clk 0:01:07]} 42. Rd1 {[%clk 0:00:22]}  Rb2 {[%clk 0:01:06]} 43. Rd3 {[%clk 0:00:22]}  g5 {[%clk 0:00:57]} 44. h4 {[%clk 0:00:20]}  gxh4+ {[%clk 0:00:54]} 45. Kxh4 {[%clk 0:00:20]}  Rg2 {[%clk 0:00:54]} 46. Kh3 {[%clk 0:00:19]}  Rg7 {[%clk 0:00:53]} 47. c5 {[%clk 0:00:16]}  Ke5 {[%clk 0:00:49]} 48. b4 {[%clk 0:00:17]}  f4 {[%clk 0:00:48]} 49. b5 {[%clk 0:00:16]}  Ke4 {[%clk 0:00:46]} 50. Rd1 {[%clk 0:00:16]}  f3 {[%clk 0:00:45]} 51. c6 {[%clk 0:00:16]}  bxc6 {[%clk 0:00:46]} 52. bxc6 {[%clk 0:00:17]}  Ke3 {[%clk 0:00:39]} 53. Rc1 {[%clk 0:00:12]}  f2 {[%clk 0:00:32]} 54. Kh2 {[%clk 0:00:09]}  a5 {[%clk 0:00:11]} 55. Ra1 {[%clk 0:00:09]}  a4 {[%clk 0:00:09]} 56. Ra3+ {[%clk 0:00:04]}  Ke2 {[%clk 0:00:03]} 57. Ra2+ {[%clk 0:00:05]}  Ke1 {[%clk 0:00:04]} 58. Ra1+ {[%clk 0:00:05]}  Kd2 {[%clk 0:00:04]} 59. Ra2+ {[%clk 0:00:06]}  Kc3 {[%clk 0:00:05]} 60. Rxf2 {[%clk 0:00:06]}  a3 {[%clk 0:00:05]} 61. Rf3+ {[%clk 0:00:05]}  Kb4 {[%clk 0:00:04]} 62. Rf4+ {[%clk 0:00:06]}  Kb5 {[%clk 0:00:03]} 63. Rf5+ {[%clk 0:00:06]}  Kb4 {[%clk 0:00:02]} 64. Rf4+ {[%clk 0:00:07]}  Kb5 {[%clk 0:00:01]} 65. Rf5+ {[%clk 0:00:07]}  Kxc6 {[%clk 0:00:01]} 66. Ra5 {[%clk 0:00:07]}  Rh7+ {[%clk 0:00:02]} 67. Kg2 {[%clk 0:00:07]}  Kb6 {[%clk 0:00:02]} 68. Rxa3 {[%clk 0:00:07]}  Rg7+ {[%clk 0:00:03]} 69. Rg3 {[%clk 0:00:08]}  Ra7 {[%clk 0:00:03]} 70. Kh3 {[%clk 0:00:08]}  Rh7+ {[%clk 0:00:03]} 71. Kg2 {[%clk 0:00:08]}  Rb7 {[%clk 0:00:04]} 72. Rb3+ {[%clk 0:00:08]}  Kc7 {[%clk 0:00:04]} 73. Rxb7+ {[%clk 0:00:09]}  Kxb7 {[%clk 0:00:05]} 1/2-1/2

[Event "December 5 Late 2023"]
[Site "https://www.chess.com"]
[Date "2023.12.05"]
[Round "8"]
[White "Galaktionov, Artem"]
[Black "Zavgorodniy, Sergiy"]
[Result "0-1"]
[Board "31"]
[TimeControl "180+1"]
[WhiteFideId "24175471"]
[BlackFideId "14110148"]
[WhiteElo "2843"]
[BlackElo "2656"]
[WhiteTeam "RUS"]
[BlackTeam "UKR"]
[WhiteClock "0:00:00"]
[BlackClock "0:00:04"]

1. d4 {[%clk 0:03:00]}  d5 {[%clk 0:02:59]} 2. Nf3 {[%clk 0:02:56]}  Nf6 {[%clk 0:02:59]} 3. c4 {[%clk 0:02:54]}  dxc4 {[%clk 0:03:00]} 4. e3 {[%clk 0:02:54]}  e6 {[%clk 0:03:00]} 5. Bxc4 {[%clk 0:02:54]}  a6 {[%clk 0:03:00]} 6. O-O {[%clk 0:02:54]}  b5 {[%clk 0:03:01]} 7. Be2 {[%clk 0:02:52]}  Bb7 {[%clk 0:03:01]} 8. a4 {[%clk 0:02:52]}  b4 {[%clk 0:03:01]} 9. Nbd2 {[%clk 0:02:53]}  Nbd7 {[%clk 0:03:01]} 10. Nc4 {[%clk 0:02:52]}  c5 {[%clk 0:03:02]} 11. b3 {[%clk 0:02:49]}  Be7 {[%clk 0:03:02]} 12. Bb2 {[%clk 0:02:50]}  O-O {[%clk 0:03:02]} 13. Rc1 {[%clk 0:02:50]}  cxd4 {[%clk 0:03:00]} 14. Nxd4 {[%clk 0:02:49]}  Nc5 {[%clk 0:03:00]} 15. Bf3 {[%clk 0:02:49]}  Nd5 {[%clk 0:02:59]} 16. Qe2 {[%clk 0:02:38]}  Rc8 {[%clk 0:02:58]} 17. Rfd1 {[%clk 0:02:39]}  Qc7 {[%clk 0:02:54]} 18. g3 {[%clk 0:02:36]}  Rfd8 {[%clk 0:02:49]} 19. e4 {[%clk 0:02:23]}  Nc3 {[%clk 0:02:42]} 20. Bxc3 {[%clk 0:02:23]}  bxc3 {[%clk 0:02:43]} 21. Rxc3 {[%clk 0:02:22]}  e5 {[%clk 0:01:53]} 22. Nf5 {[%clk 0:02:22]}  Bf8 {[%clk 0:01:44]} 23. Rdc1 {[%clk 0:01:53]}  a5 {[%clk 0:01:41]} 24. Nce3 {[%clk 0:01:50]}  Ba6 {[%clk 0:01:32]} 25. Qb2 {[%clk 0:01:31]}  Qb8 {[%clk 0:01:23]} 26. Qa2 {[%clk 0:01:19]}  Nxb3 {[%clk 0:01:11]} 27. Rxc8 {[%clk 0:01:12]}  Rxc8 {[%clk 0:01:12]} 28. Rb1 {[%clk 0:01:08]}  Rc1+ {[%clk 0:01:06]} 29. Rxc1 {[%clk 0:01:02]}  Nxc1 {[%clk 0:01:07]} 30. Qc2 {[%clk 0:01:02]}  Nd3 {[%clk 0:01:03]} 31. Qc6 {[%clk 0:00:46]}  Qb1+ {[%clk 0:00:58]} 32. Bd1 {[%clk 0:00:44]}  Bb7 {[%clk 0:00:54]} 33. Qe8 {[%clk 0:00:40]}  Qb4 {[%clk 0:00:48]} 34. Nc2 {[%clk 0:00:26]}  Qc5 {[%clk 0:00:44]} 35. Nfe3 {[%clk 0:00:21]}  Bxe4 {[%clk 0:00:41]} 36. Be2 {[%clk 0:00:20]}  h5 {[%clk 0:00:30]} 37. Bxh5 {[%clk 0:00:20]}  g6 {[%clk 0:00:30]} 38. Be2 {[%clk 0:00:20]}  Qc3 {[%clk 0:00:25]} 39. h4 {[%clk 0:00:12]}  Qd2 {[%clk 0:00:21]} 40. Bxd3 {[%clk 0:00:11]}  Bxd3 {[%clk 0:00:21]} 41. Qxe5 {[%clk 0:00:09]}  Bxc2 {[%clk 0:00:19]} 42. Nxc2 {[%clk 0:00:09]}  Qxc2 {[%clk 0:00:18]} 43. Qxa5 {[%clk 0:00:09]}  Qc1+ {[%clk 0:00:14]} 44. Kg2 {[%clk 0:00:09]}  Bc5 {[%clk 0:00:13]} 45. Qa8+ {[%clk 0:00:09]}  Kg7 {[%clk 0:00:13]} 46. Qd5 {[%clk 0:00:09]}  Qc2 {[%clk 0:00:11]} 47. Qf3 {[%clk 0:00:09]}  Qxa4 {[%clk 0:00:08]} 48. h5 {[%clk 0:00:08]}  gxh5 {[%clk 0:00:07]} 49. Qxh5 {[%clk 0:00:08]}  Be7 {[%clk 0:00:07]} 50. Qf5 {[%clk 0:00:07]}  Qd4 {[%clk 0:00:06]} 51. f4 {[%clk 0:00:06]}  Bf6 {[%clk 0:00:06]} 52. Kh3 {[%clk 0:00:05]}  Qd6 {[%clk 0:00:06]} 53. Qg4+ {[%clk 0:00:05]}  Kf8 {[%clk 0:00:06]} 54. Qc8+ {[%clk 0:00:05]}  Qd8 {[%clk 0:00:06]} 55. Qc5+ {[%clk 0:00:04]}  Be7 {[%clk 0:00:07]} 56. Qe5 {[%clk 0:00:04]}  Qd7+ {[%clk 0:00:07]} 57. g4 {[%clk 0:00:04]}  Qd3+ {[%clk 0:00:06]} 58. Kg2 {[%clk 0:00:03]}  Qc2+ {[%clk 0:00:05]} 59. Kf3 {[%clk 0:00:03]}  Qd3+ {[%clk 0:00:05]} 60. Kg2 {[%clk 0:00:03]}  f6 {[%clk 0:00:05]} 61. Qb8+ {[%clk 0:00:01]}  Kf7 {[%clk 0:00:05]} 62. f5 {[%clk 0:00:01]}  Qe4+ {[%clk 0:00:05]} 63. Kg3 {[%clk 0:00:01]}  Qd3+ {[%clk 0:00:05]} 64. Kh4 {[%clk 0:00:00]}  Qe3 {[%clk 0:00:04]} 0-1

[Event "December 5 Late 2023"]
[Site "https://www.chess.com"]
[Date "2023.12.05"]
[Round "8"]
[White "Mekhitarian, Krikor Sevag"]
[Black "Martins, Vinicius Tine"]
[Result "1/2-1/2"]
[Board "32"]
[TimeControl "180+1"]
[WhiteFideId "2107660"]
[BlackFideId "2112884"]
[WhiteElo "2832"]
[BlackElo "2636"]
[WhiteTeam "BRA"]
[BlackTeam "BRA"]
[WhiteClock "0:00:02"]
[BlackClock "0:00:16"]

1. Nf3 {[%clk 0:02:39]}  d6 {[%clk 0:02:58]} 2. d4 {[%clk 0:02:38]}  Nf6 {[%clk 0:02:57]} 3. c4 {[%clk 0:02:38]}  g6 {[%clk 0:02:56]} 4. Nc3 {[%clk 0:02:38]}  Bg7 {[%clk 0:02:56]} 5. e4 {[%clk 0:02:39]}  Nbd7 {[%clk 0:02:54]} 6. h3 {[%clk 0:02:36]}  c5 {[%clk 0:02:54]} 7. Be3 {[%clk 0:02:35]}  cxd4 {[%clk 0:02:51]} 8. Bxd4 {[%clk 0:02:28]}  O-O {[%clk 0:02:49]} 9. Bd3 {[%clk 0:02:24]}  Nh5 {[%clk 0:02:43]} 10. Bxg7 {[%clk 0:02:21]}  Kxg7 {[%clk 0:02:43]} 11. O-O {[%clk 0:02:22]}  Qa5 {[%clk 0:02:37]} 12. Rb1 {[%clk 0:02:18]}  Nf4 {[%clk 0:02:14]} 13. b4 {[%clk 0:02:16]}  Qh5 {[%clk 0:02:13]} 14. Be2 {[%clk 0:01:57]}  Nf6 {[%clk 0:02:03]} 15. Ne1 {[%clk 0:01:02]}  Nxe2+ {[%clk 0:01:54]} 16. Qxe2 {[%clk 0:00:59]}  Qxe2 {[%clk 0:01:53]} 17. Nxe2 {[%clk 0:01:00]}  Nxe4 {[%clk 0:01:54]} 18. Nf3 {[%clk 0:00:56]}  Bf5 {[%clk 0:01:38]} 19. Ned4 {[%clk 0:00:49]}  Rac8 {[%clk 0:01:25]} 20. Rbc1 {[%clk 0:00:47]}  a6 {[%clk 0:01:17]} 21. Rfe1 {[%clk 0:00:45]}  d5 {[%clk 0:00:51]} 22. cxd5 {[%clk 0:00:31]}  Rxc1 {[%clk 0:00:50]} 23. Rxc1 {[%clk 0:00:30]}  Nd6 {[%clk 0:00:50]} 24. Nxf5+ {[%clk 0:00:17]}  gxf5 {[%clk 0:00:49]} 25. Rc7 {[%clk 0:00:13]}  Kf6 {[%clk 0:00:49]} 26. Kf1 {[%clk 0:00:13]}  Rc8 {[%clk 0:00:48]} 27. Rxc8 {[%clk 0:00:13]}  Nxc8 {[%clk 0:00:48]} 28. Ke2 {[%clk 0:00:14]}  Nb6 {[%clk 0:00:49]} 29. d6 {[%clk 0:00:13]}  e5 {[%clk 0:00:42]} 30. g4 {[%clk 0:00:13]}  fxg4 {[%clk 0:00:42]} 31. hxg4 {[%clk 0:00:13]}  h6 {[%clk 0:00:41]} 32. Nh4 {[%clk 0:00:13]}  Ke6 {[%clk 0:00:39]} 33. Nf5 {[%clk 0:00:13]}  Nc4 {[%clk 0:00:38]} 34. Nxh6 {[%clk 0:00:13]}  Nxd6 {[%clk 0:00:38]} 35. Kd3 {[%clk 0:00:07]}  f6 {[%clk 0:00:38]} 36. f3 {[%clk 0:00:06]}  b5 {[%clk 0:00:38]} 37. Kc3 {[%clk 0:00:02]}  Ke7 {[%clk 0:00:38]} 38. Kd3 {[%clk 0:00:02]}  Kf8 {[%clk 0:00:38]} 39. g5 {[%clk 0:00:03]}  f5 {[%clk 0:00:34]} 40. f4 {[%clk 0:00:01]}  e4+ {[%clk 0:00:34]} 41. Kd4 {[%clk 0:00:02]}  Kg7 {[%clk 0:00:32]} 42. Ke3 {[%clk 0:00:02]}  Nc4+ {[%clk 0:00:30]} 43. Kd4 {[%clk 0:00:03]}  Nd6 {[%clk 0:00:28]} 44. Ke3 {[%clk 0:00:02]}  Nc4+ {[%clk 0:00:18]} 45. Kd4 {[%clk 0:00:02]}  Nd6 {[%clk 0:00:16]} 1/2-1/2

[Event "December 5 Late 2023"]
[Site "https://www.chess.com"]
[Date "2023.12.05"]
[Round "8"]
[White "Bjelobrk, Igor"]
[Black "Brodsky, David"]
[Result "0-1"]
[Board "33"]
[TimeControl "180+1"]
[WhiteFideId "4300726"]
[BlackFideId "2073250"]
[WhiteElo "2586"]
[BlackElo "2785"]
[WhiteTeam "AUS"]
[BlackTeam "USA"]
[WhiteClock "0:00:55"]
[BlackClock "0:00:54"]

1. d4 {[%clk 0:02:55]}  a6 {[%clk 0:02:58]} 2. e4 {[%clk 0:02:55]}  c6 {[%clk 0:02:56]} 3. Nf3 {[%clk 0:02:55]}  d5 {[%clk 0:02:57]} 4. exd5 {[%clk 0:02:55]}  cxd5 {[%clk 0:02:58]} 5. Bd3 {[%clk 0:02:54]}  Nc6 {[%clk 0:02:54]} 6. c3 {[%clk 0:02:54]}  Bg4 {[%clk 0:02:52]} 7. Nbd2 {[%clk 0:02:54]}  e6 {[%clk 0:02:52]} 8. h3 {[%clk 0:02:52]}  Bh5 {[%clk 0:02:50]} 9. O-O {[%clk 0:02:52]}  Bd6 {[%clk 0:02:49]} 10. Re1 {[%clk 0:02:52]}  Nge7 {[%clk 0:02:45]} 11. Nf1 {[%clk 0:02:52]}  Bg6 {[%clk 0:02:44]} 12. Ne3 {[%clk 0:02:46]}  O-O {[%clk 0:02:43]} 13. Ng4 {[%clk 0:02:42]}  Qc7 {[%clk 0:02:35]} 14. Bxg6 {[%clk 0:02:38]}  Nxg6 {[%clk 0:02:35]} 15. Qd3 {[%clk 0:02:37]}  Rae8 {[%clk 0:02:30]} 16. Nge5 {[%clk 0:02:32]}  Ncxe5 {[%clk 0:02:25]} 17. dxe5 {[%clk 0:02:31]}  Nxe5 {[%clk 0:02:26]} 18. Nxe5 {[%clk 0:02:30]}  Bxe5 {[%clk 0:02:26]} 19. Be3 {[%clk 0:02:21]}  Bh2+ {[%clk 0:02:23]} 20. Kh1 {[%clk 0:02:21]}  Bf4 {[%clk 0:02:24]} 21. Rac1 {[%clk 0:02:13]}  Rd8 {[%clk 0:02:19]} 22. c4 {[%clk 0:02:10]}  Bxe3 {[%clk 0:02:16]} 23. Rxe3 {[%clk 0:02:09]}  dxc4 {[%clk 0:02:11]} 24. Rxc4 {[%clk 0:02:02]}  Qb6 {[%clk 0:01:54]} 25. Qc2 {[%clk 0:01:59]}  g6 {[%clk 0:01:52]} 26. Rb3 {[%clk 0:01:58]}  Qa5 {[%clk 0:01:49]} 27. Rxb7 {[%clk 0:01:45]}  Qe1+ {[%clk 0:01:38]} 28. Kh2 {[%clk 0:01:43]}  Rd2 {[%clk 0:01:39]} 29. Qc3 {[%clk 0:01:38]}  Qxf2 {[%clk 0:01:38]} 30. Qg3 {[%clk 0:01:37]}  Rxb2 {[%clk 0:01:26]} 31. Qxf2 {[%clk 0:01:36]}  Rxf2 {[%clk 0:01:26]} 32. Ra4 {[%clk 0:01:37]}  Rc8 {[%clk 0:01:23]} 33. a3 {[%clk 0:01:20]}  Rcc2 {[%clk 0:01:18]} 34. Rg4 {[%clk 0:01:20]}  h5 {[%clk 0:01:17]} 35. Rg3 {[%clk 0:01:20]}  Rc4 {[%clk 0:01:06]} 36. Kg1 {[%clk 0:01:12]}  Rf5 {[%clk 0:00:59]} 37. Rd3 {[%clk 0:01:01]}  h4 {[%clk 0:00:57]} 38. Ra7 {[%clk 0:00:59]}  Rc1+ {[%clk 0:00:53]} 39. Kh2 {[%clk 0:00:56]}  Rff1 {[%clk 0:00:54]} 40. g4 {[%clk 0:00:55]}  Rf2# {[%clk 0:00:54]} 0-1

[Event "December 5 Late 2023"]
[Site "https://www.chess.com"]
[Date "2023.12.05"]
[Round "8"]
[White "Wanyama, Harold"]
[Black "Skvortsov, Andrei"]
[Result "1-0"]
[Board "36"]
[TimeControl "180+1"]
[WhiteFideId "10000380"]
[BlackFideId "24108600"]
[WhiteElo "2486"]
[BlackElo "2753"]
[WhiteTeam "UGA"]
[BlackTeam "MNE"]
[WhiteClock "0:00:37"]
[BlackClock "0:00:10"]

1. d4 {[%clk 0:02:58]}  e6 {[%clk 0:02:58]} 2. c4 {[%clk 0:02:58]}  b6 {[%clk 0:02:55]} 3. Nc3 {[%clk 0:02:57]}  Bb7 {[%clk 0:02:54]} 4. e4 {[%clk 0:02:58]}  Bb4 {[%clk 0:02:54]} 5. e5 {[%clk 0:02:58]}  Ne7 {[%clk 0:02:51]} 6. Nf3 {[%clk 0:02:57]}  d6 {[%clk 0:02:51]} 7. Qa4+ {[%clk 0:02:54]}  Nbc6 {[%clk 0:02:51]} 8. d5 {[%clk 0:02:50]}  exd5 {[%clk 0:02:47]} 9. cxd5 {[%clk 0:02:49]}  Bxc3+ {[%clk 0:02:48]} 10. bxc3 {[%clk 0:02:49]}  Nxd5 {[%clk 0:02:48]} 11. Bb5 {[%clk 0:02:44]}  Qd7 {[%clk 0:02:11]} 12. Qc4 {[%clk 0:02:19]}  Nde7 {[%clk 0:01:57]} 13. exd6 {[%clk 0:02:13]}  cxd6 {[%clk 0:01:55]} 14. O-O {[%clk 0:02:03]}  d5 {[%clk 0:01:55]} 15. Qh4 {[%clk 0:01:59]}  O-O {[%clk 0:01:55]} 16. Bd3 {[%clk 0:01:55]}  Ng6 {[%clk 0:01:44]} 17. Qh5 {[%clk 0:01:51]}  Qd6 {[%clk 0:01:41]} 18. Ng5 {[%clk 0:01:44]}  h6 {[%clk 0:01:31]} 19. Nxf7 {[%clk 0:01:37]}  Kxf7 {[%clk 0:01:32]} 20. Ba3 {[%clk 0:01:27]}  Qf6 {[%clk 0:01:21]} 21. Bxf8 {[%clk 0:01:19]}  Rxf8 {[%clk 0:01:21]} 22. Qxd5+ {[%clk 0:01:18]}  Ke7 {[%clk 0:00:49]} 23. Rae1+ {[%clk 0:01:16]}  Nge5 {[%clk 0:00:48]} 24. f4 {[%clk 0:01:09]}  Rd8 {[%clk 0:00:47]} 25. Qc4 {[%clk 0:00:56]}  Qe6 {[%clk 0:00:19]} 26. fxe5 {[%clk 0:00:45]}  Nxe5 {[%clk 0:00:05]} 27. Qc7+ {[%clk 0:00:43]}  Rd7 {[%clk 0:00:04]} 28. Qxe5 {[%clk 0:00:42]}  Qxe5 {[%clk 0:00:05]} 29. Rxe5+ {[%clk 0:00:40]}  Kd6 {[%clk 0:00:06]} 30. Re3 {[%clk 0:00:38]}  Kc7 {[%clk 0:00:06]} 31. Rg3 {[%clk 0:00:38]}  a5 {[%clk 0:00:06]} 32. Bg6 {[%clk 0:00:37]}  Re7 {[%clk 0:00:06]} 33. Rf7 {[%clk 0:00:37]}  Rxf7 {[%clk 0:00:07]} 34. Bxf7 {[%clk 0:00:37]}  g5 {[%clk 0:00:08]} 35. h4 {[%clk 0:00:37]}  Kd6 {[%clk 0:00:08]} 36. hxg5 {[%clk 0:00:37]}  hxg5 {[%clk 0:00:08]} 37. Rxg5 {[%clk 0:00:37]}  Be4 {[%clk 0:00:09]} 38. Bb3 {[%clk 0:00:36]}  Bb1 {[%clk 0:00:09]} 39. Kf2 {[%clk 0:00:37]}  Kc6 {[%clk 0:00:10]} 40. Ke3 {[%clk 0:00:37]}  b5 {[%clk 0:00:10]} 41. a4 {[%clk 0:00:37]}  bxa4 {[%clk 0:00:10]} 42. Bxa4+ {[%clk 0:00:38]}  Kb6 {[%clk 0:00:10]} 43. Rb5+ {[%clk 0:00:37]} 1-0

[Event "December 5 Late 2023"]
[Site "https://www.chess.com"]
[Date "2023.12.05"]
[Round "8"]
[White "Kosteniuk, Alexandra"]
[Black "Saito, Vinicius"]
[Result "1-0"]
[Board "37"]
[TimeControl "180+1"]
[WhiteFideId "4128125"]
[BlackFideId "2113384"]
[WhiteElo "2741"]
[BlackElo "2446"]
[WhiteTeam "SUI"]
[BlackTeam "BRA"]
[WhiteClock "0:01:54"]
[BlackClock "0:00:14"]

1. e4 {[%clk 0:03:00]}  c5 {[%clk 0:02:59]} 2. c3 {[%clk 0:03:00]}  Nf6 {[%clk 0:02:59]} 3. e5 {[%clk 0:03:00]}  Nd5 {[%clk 0:02:59]} 4. Nf3 {[%clk 0:03:00]}  Nc6 {[%clk 0:02:58]} 5. Bc4 {[%clk 0:03:01]}  e6 {[%clk 0:02:58]} 6. d4 {[%clk 0:02:59]}  cxd4 {[%clk 0:02:57]} 7. cxd4 {[%clk 0:02:59]}  d6 {[%clk 0:02:57]} 8. O-O {[%clk 0:02:58]}  Be7 {[%clk 0:02:57]} 9. Qe2 {[%clk 0:02:58]}  O-O {[%clk 0:02:52]} 10. Rd1 {[%clk 0:02:58]}  Qc7 {[%clk 0:02:32]} 11. a3 {[%clk 0:02:52]}  Bd7 {[%clk 0:02:26]} 12. Bxd5 {[%clk 0:02:52]}  exd5 {[%clk 0:02:26]} 13. Nc3 {[%clk 0:02:53]}  Be6 {[%clk 0:02:25]} 14. Bf4 {[%clk 0:02:52]}  Qd7 {[%clk 0:02:23]} 15. h3 {[%clk 0:02:51]}  a6 {[%clk 0:02:21]} 16. Rd3 {[%clk 0:02:39]}  dxe5 {[%clk 0:01:59]} 17. Nxe5 {[%clk 0:02:32]}  Nxe5 {[%clk 0:01:55]} 18. dxe5 {[%clk 0:02:33]}  Rad8 {[%clk 0:01:53]} 19. Rad1 {[%clk 0:02:31]}  Qc6 {[%clk 0:01:50]} 20. Qd2 {[%clk 0:02:25]}  Qc4 {[%clk 0:01:28]} 21. Rd4 {[%clk 0:02:24]}  Qc6 {[%clk 0:01:17]} 22. Nxd5 {[%clk 0:02:08]}  Rxd5 {[%clk 0:01:03]} 23. Rxd5 {[%clk 0:02:08]}  Bxd5 {[%clk 0:01:03]} 24. Qxd5 {[%clk 0:02:09]}  Qxd5 {[%clk 0:00:56]} 25. Rxd5 {[%clk 0:02:08]}  Rd8 {[%clk 0:00:56]} 26. Rxd8+ {[%clk 0:02:06]}  Bxd8 {[%clk 0:00:56]} 27. Kf1 {[%clk 0:01:58]}  Kf8 {[%clk 0:00:55]} 28. Ke2 {[%clk 0:01:58]}  Ke8 {[%clk 0:00:55]} 29. Kd3 {[%clk 0:01:58]}  Kd7 {[%clk 0:00:56]} 30. Ke4 {[%clk 0:01:58]}  Ke6 {[%clk 0:00:56]} 31. Be3 {[%clk 0:01:58]}  f5+ {[%clk 0:00:51]} 32. exf6 {[%clk 0:01:58]}  Bxf6 {[%clk 0:00:52]} 33. Bd4 {[%clk 0:01:58]}  h5 {[%clk 0:00:22]} 34. Bxf6 {[%clk 0:01:57]}  gxf6 {[%clk 0:00:22]} 35. g4 {[%clk 0:01:57]}  hxg4 {[%clk 0:00:22]} 36. hxg4 {[%clk 0:01:58]}  Ke7 {[%clk 0:00:20]} 37. Kd5 {[%clk 0:01:56]}  Kd7 {[%clk 0:00:14]} 38. a4 {[%clk 0:01:54]} 1-0

[Event "December 5 Late 2023"]
[Site "https://www.chess.com"]
[Date "2023.12.05"]
[Round "8"]
[White "Zakarian, David"]
[Black "Vazquez, Facundo"]
[Result "1-0"]
[Board "38"]
[TimeControl "180+1"]
[WhiteFideId "13301276"]
[BlackFideId "3007669"]
[WhiteElo "2418"]
[BlackElo "2716"]
[WhiteTeam "ARM"]
[BlackTeam "URU"]
[WhiteClock "0:00:21"]
[BlackClock "0:00:07"]

1. f4 {[%clk 0:02:59]}  Nf6 {[%clk 0:02:58]} 2. Nf3 {[%clk 0:02:58]}  g6 {[%clk 0:02:59]} 3. d3 {[%clk 0:02:54]}  Bg7 {[%clk 0:02:59]} 4. e4 {[%clk 0:02:54]}  O-O {[%clk 0:03:00]} 5. g3 {[%clk 0:02:53]}  d5 {[%clk 0:02:59]} 6. e5 {[%clk 0:02:53]}  Nfd7 {[%clk 0:02:58]} 7. Bg2 {[%clk 0:02:54]}  f6 {[%clk 0:02:58]} 8. d4 {[%clk 0:02:52]}  fxe5 {[%clk 0:02:58]} 9. Nxe5 {[%clk 0:02:52]}  Nxe5 {[%clk 0:02:55]} 10. dxe5 {[%clk 0:02:52]}  e6 {[%clk 0:02:55]} 11. O-O {[%clk 0:02:52]}  c5 {[%clk 0:02:56]} 12. c4 {[%clk 0:02:51]}  d4 {[%clk 0:02:54]} 13. Nd2 {[%clk 0:02:42]}  Nc6 {[%clk 0:02:54]} 14. Ne4 {[%clk 0:02:42]}  Qe7 {[%clk 0:02:52]} 15. b3 {[%clk 0:02:41]}  Bd7 {[%clk 0:02:49]} 16. Nf2 {[%clk 0:02:36]}  Rab8 {[%clk 0:02:46]} 17. Nd3 {[%clk 0:02:37]}  Rfd8 {[%clk 0:02:44]} 18. Ba3 {[%clk 0:02:35]}  b6 {[%clk 0:02:44]} 19. Rc1 {[%clk 0:02:32]}  g5 {[%clk 0:02:41]} 20. Qh5 {[%clk 0:02:23]}  Be8 {[%clk 0:02:37]} 21. Qg4 {[%clk 0:02:19]}  h5 {[%clk 0:02:35]} 22. Qe2 {[%clk 0:02:07]}  g4 {[%clk 0:02:30]} 23. Rce1 {[%clk 0:02:00]}  Rbc8 {[%clk 0:02:20]} 24. Be4 {[%clk 0:01:39]}  Bf7 {[%clk 0:02:11]} 25. Qg2 {[%clk 0:01:39]}  Na5 {[%clk 0:02:10]} 26. f5 {[%clk 0:01:34]}  exf5 {[%clk 0:02:05]} 27. Bxf5 {[%clk 0:01:35]}  Rb8 {[%clk 0:01:55]} 28. Bc1 {[%clk 0:01:26]}  b5 {[%clk 0:01:35]} 29. cxb5 {[%clk 0:01:22]}  c4 {[%clk 0:01:33]} 30. bxc4 {[%clk 0:01:20]}  Nxc4 {[%clk 0:01:31]} 31. e6 {[%clk 0:01:11]}  Be8 {[%clk 0:01:29]} 32. a4 {[%clk 0:01:11]}  Ne3 {[%clk 0:01:23]} 33. Qe4 {[%clk 0:01:00]}  Nxf1 {[%clk 0:01:21]} 34. Rxf1 {[%clk 0:00:59]}  Kh8 {[%clk 0:01:19]} 35. Bg6 {[%clk 0:00:54]}  Rd6 {[%clk 0:01:14]} 36. Nf4 {[%clk 0:00:50]}  d3 {[%clk 0:01:08]} 37. Ba3 {[%clk 0:00:49]}  Rbd8 {[%clk 0:01:00]} 38. Bxe8 {[%clk 0:00:47]}  Qxe8 {[%clk 0:00:58]} 39. e7 {[%clk 0:00:40]}  R8d7 {[%clk 0:00:52]} 40. Bxd6 {[%clk 0:00:40]}  Rxd6 {[%clk 0:00:53]} 41. Nxd3 {[%clk 0:00:38]}  Rf6 {[%clk 0:00:47]} 42. Re1 {[%clk 0:00:32]}  Rf3 {[%clk 0:00:36]} 43. Ne5 {[%clk 0:00:26]}  Rf6 {[%clk 0:00:28]} 44. Ng6+ {[%clk 0:00:22]}  Kg8 {[%clk 0:00:23]} 45. Nf4 {[%clk 0:00:22]}  Bh6 {[%clk 0:00:17]} 46. Nxh5 {[%clk 0:00:21]}  Rd6 {[%clk 0:00:11]} 47. Qxg4+ {[%clk 0:00:21]}  Kh7 {[%clk 0:00:11]} 48. Qf5+ {[%clk 0:00:20]}  Kg8 {[%clk 0:00:11]} 49. Nf6+ {[%clk 0:00:20]}  Rxf6 {[%clk 0:00:10]} 50. Qxf6 {[%clk 0:00:21]}  Bg7 {[%clk 0:00:10]} 51. Qe6+ {[%clk 0:00:20]}  Kh7 {[%clk 0:00:10]} 52. Qe4+ {[%clk 0:00:20]}  Kg8 {[%clk 0:00:10]} 53. Qd5+ {[%clk 0:00:20]}  Kh7 {[%clk 0:00:10]} 54. Qd3+ {[%clk 0:00:21]}  Kg8 {[%clk 0:00:07]} 55. Qd8 {[%clk 0:00:21]} 1-0